fUST/lending_fUST_20240706
["ID","MTS","AMOUNT","RATE_DAILY","PERIOD"]
[331365857,1720279847733,-10308.17960674,0.000325,60]
[331365858,1720279847744,-300.79960958,0.000326,30]
[331365859,1720279847758,-365.122522,0.00033295,2]
[331365860,1720279847779,-2982.80962898,0.00033729,2]
[331365861,1720279847794,-962.96577273,0.00035,4]
[331365862,1720279847805,-154.99342721,0.0003558,4]
[331365864,1720279847825,-531.56332391,0.00036,30]
[331365867,1720279847849,-154.72922386,0.00036732,4]
[331365869,1720279847860,-155.11332947,0.00037,4]
[331365872,1720279847901,-154.72922386,0.00037085,4]
[331365873,1720279847912,-2982.80962898,0.00038315,2]
[331365874,1720279847926,-155.24403697,0.000392,10]
[331365877,1720279847945,-365.122522,0.00039394,2]
[331365878,1720279847956,-684.30220419,0.00039949,5]
[331365880,1720279847970,-3990.98413807,0.0003999,4]
[331365884,1720279848008,-314.27902116,0.0004,120]
[331365885,1720279848020,-324.71096326,0.0004,4]
[331365887,1720279848032,-174.365209,0.00040066,2]
[331365888,1720279848049,-727.49132511,0.00040599,20]
[331365889,1720279848065,-270.78245941,0.00040999,4]
[331365890,1720279848086,-1000.0,0.00041,41]
[331365891,1720279848103,-160.0,0.00041567,3]
[331365892,1720279848114,-67850.360573,0.0004199,5]
[331365893,1720279848128,-5021.73007971,0.00042,30]
[331365894,1720279848139,-1000.0,0.00042,42]
[331365895,1720279848154,-10000.0,0.00042,30]
[331365896,1720279848191,-683.0,0.00042051,30]
[331365897,1720279848228,-151.0,0.00042435,31]
[331365898,1720279848240,-2500.0,0.000425,120]
[331365899,1720279848251,-537.32517777,0.000425,30]
[331365900,1720279848268,-161.9347333,0.0004274,2]
[331365901,1720279848292,-500.0,0.00042835,120]
[331365902,1720279848303,-500.0,0.00042835,120]
[331365903,1720279848313,-500.0,0.00042835,120]
[331365904,1720279848323,-500.0,0.00042835,120]
[331365905,1720279848336,-500.0,0.00042835,120]
[331365906,1720279848348,-500.0,0.00042835,120]
[331365907,1720279848365,-500.0,0.00042835,120]
[331365908,1720279848380,-500.0,0.00042835,120]
[331365909,1720279848391,-500.0,0.00042835,120]
[331365910,1720279848418,-500.0,0.00042835,120]
[331365911,1720279848449,-423.85,0.00042835,120]
[331365912,1720279848464,-160.0,0.00042869,4]
[331365913,1720279848481,-2982.80962898,0.000429,2]
[331365914,1720279848493,-1000.0,0.00043,43]
[331365915,1720279848504,-503.38404298,0.00043,120]
[331365916,1720279848515,-67850.360573,0.0004319,5]
[331365917,1720279848530,-62755.504399,0.000432,120]
[331365918,1720279848539,-151.0,0.000432,14]
[331365919,1720279848561,-444.167701,0.000432,14]
[331365920,1720279848571,-444.167701,0.000432,14]
[331365921,1720279848613,-151.0,0.000432,14]
[331365922,1720279848622,-647.528643,0.000432,14]
[331365923,1720279848634,-151.0,0.000432,14]
[331365924,1720279848646,-647.528643,0.000432,14]
[331365925,1720279848656,-191.565386,0.000432,14]
[331365926,1720279848668,-151.0,0.000432,14]
[331365927,1720279848679,-429.00413,0.000432,14]
[331365928,1720279848691,-151.0,0.000432,14]
[331365929,1720279848702,-151.0,0.000432,14]
[331365930,1720279848713,-429.00413,0.000432,14]
[331365931,1720279848742,-191.565386,0.000432,14]
[331365932,1720279848773,-151.0,0.000432,14]
[331365933,1720279848784,-151.0,0.000432,14]
[331365934,1720279848795,-151.0,0.000432,14]
[331365935,1720279848807,-151.0,0.000432,2]
[331365936,1720279848818,-151.0,0.000432,14]
[331365937,1720279848830,-151.0,0.000432,14]
[331365938,1720279848846,-940.579225,0.000432,14]
[331365939,1720279848859,-151.0,0.000432,2]
[331365940,1720279848869,-197.515395,0.000432,14]
[331365941,1720279848880,-150.29386301,0.000432,2]
[331365942,1720279848895,-1013.0,0.000435,120]
[331365943,1720279848907,-1000.0,0.00043637,7]
[331365944,1720279848938,-857.73484534,0.00043686,7]
[331365945,1720279848949,-151.0,0.000437,14]
[331365946,1720279848959,-2000.0,0.00043735,2]
[331365947,1720279848969,-1500.7012899,0.000438,30]
[331365948,1720279848980,-150.0,0.000438,56]
[331365949,1720279848990,-151.0,0.00043815,31]
[331365950,1720279849001,-19888.26695464,0.00043825,31]
[331365951,1720279849011,-293.481493,0.00043825,14]
[331365952,1720279849046,-1000.0,0.00043825,30]
[331365953,1720279849057,-6671.36642249,0.00043835,31]
[331365954,1720279849067,-151.0,0.00043835,14]
[331365955,1720279849079,-500.0,0.00043835,120]
[331365956,1720279849090,-500.0,0.00043835,120]
[331365957,1720279849103,-500.0,0.00043835,120]
[331365958,1720279849114,-157.51538413,0.00043835,120]
[331365959,1720279849124,-500.0,0.00043835,120]
[331365960,1720279849142,-500.0,0.00043835,120]
[331365961,1720279849153,-500.0,0.00043835,120]
[331365962,1720279849163,-500.0,0.00043835,120]
[331365963,1720279849174,-500.0,0.00043835,120]
[331365964,1720279849196,-500.73743651,0.00043835,120]
[331365965,1720279849221,-501.9909106,0.00043835,120]
[331365966,1720279849231,-508.49626885,0.00043835,120]
[331365967,1720279849241,-504.67055399,0.00043835,120]
[331365968,1720279849254,-576.86598969,0.00043835,120]
[331365969,1720279849265,-500.0,0.00043835,120]
[331365970,1720279849290,-501.27307828,0.00043835,120]
[331365971,1720279849304,-468.58421245,0.00043835,120]
[331365972,1720279849325,-500.0,0.00043835,120]
[331365973,1720279849345,-500.0,0.00043835,120]
[331365974,1720279849362,-500.0,0.00043835,120]
[331365975,1720279849424,-500.0,0.00043835,120]
[331365976,1720279849437,-500.0,0.00043835,120]
[331365977,1720279849453,-437.8829996,0.00043835,120]
[331365978,1720279849466,-636.51,0.00043835,120]
[331365979,1720279849476,-500.0,0.00043835,120]
[331365980,1720279849486,-500.0,0.00043835,120]
[331365981,1720279849499,-500.0,0.00043835,120]
[331365982,1720279849510,-734.78,0.00043835,120]
[331365983,1720279849521,-500.0,0.00043835,120]
[331365984,1720279849533,-500.0,0.00043835,120]
[331365985,1720279849557,-151.0,0.00043835,14]
[331365986,1720279849568,-151.0,0.00043835,14]
[331365987,1720279849578,-151.0,0.00043835,14]
[331365988,1720279849593,-500.0,0.00043835,120]
[331365989,1720279849605,-500.0,0.00043835,120]
[331365990,1720279849621,-500.0,0.00043835,120]
[331365991,1720279849635,-500.0,0.00043835,120]
[331365992,1720279849645,-500.0,0.00043835,120]
[331365993,1720279849662,-220.05629734,0.00043835,120]
[331365994,1720279849674,-500.0,0.00043835,120]
[331365995,1720279849685,-500.0,0.00043835,120]
[331365996,1720279849705,-500.0,0.00043835,120]
[331365997,1720279849715,-382.69751023,0.00043835,120]
[331365998,1720279849730,-500.0,0.00043835,120]
[331365999,1720279849745,-500.0,0.00043835,120]
[331366000,1720279849757,-151.0,0.00043835,14]
[331366001,1720279849791,-151.0,0.00043835,14]
[331366002,1720279849815,-287.711296,0.00043835,14]
[331366003,1720279849830,-500.0,0.00043835,120]
[331366004,1720279849862,-500.0,0.00043835,120]
[331366005,1720279849872,-500.0,0.00043835,120]
[331366006,1720279849907,-538.46803184,0.00043835,120]
[331366007,1720279849918,-520.35059363,0.00043835,120]
[331366008,1720279849962,-500.0,0.00043835,120]
[331366009,1720279849998,-500.0,0.00043835,120]
[331366010,1720279850015,-679.68,0.00043835,120]
[331366011,1720279850025,-891.98,0.00043835,120]
[331366012,1720279850037,-500.0,0.00043835,30]
[331366013,1720279850049,-500.0,0.00043835,120]
[331366014,1720279850060,-500.0,0.00043835,120]
[331366015,1720279850071,-1095.63,0.00043835,21]
[331366016,1720279850087,-500.0,0.00043835,120]
[331366017,1720279850104,-509.49118362,0.00043835,120]
[331366018,1720279850115,-780.03,0.00043835,120]
[331366019,1720279850152,-781.54,0.00043835,120]
[331366020,1720279850178,-500.0,0.00043835,120]
[331366021,1720279850194,-504.49121844,0.00043835,120]
[331366022,1720279850223,-500.0,0.00043835,120]
[331366023,1720279850234,-527.77014961,0.00043835,120]
[331366024,1720279850249,-500.0,0.00043835,120]
[331366025,1720279850260,-152.194795,0.00043835,14]
[331366026,1720279850284,-500.0,0.00043835,120]
[331366027,1720279850295,-522.17575805,0.00043835,120]
[331366028,1720279850325,-500.0,0.00043835,120]
[331366029,1720279850352,-500.0,0.00043835,120]
[331366030,1720279850373,-500.0,0.00043835,120]
[331366031,1720279850385,-500.22822418,0.00043835,3]
[331366032,1720279850420,-500.0,0.00043835,120]
[331366033,1720279850431,-500.0,0.00043835,120]
[331366034,1720279850441,-500.0,0.00043835,2]
[331366035,1720279850469,-502.62237897,0.00043835,120]
[331366036,1720279850500,-500.0,0.00043835,120]
[331366037,1720279850514,-500.0,0.00043835,120]
[331366038,1720279850528,-500.0,0.00043835,120]
[331366039,1720279850540,-500.0,0.00043835,120]
[331366040,1720279850550,-483.36232367,0.00043835,120]
[331366041,1720279850560,-500.0,0.00043835,120]
[331366042,1720279850571,-500.0,0.00043835,120]
[331366043,1720279850585,-1133.99,0.00043835,120]
[331366044,1720279850596,-1073.95,0.00043835,120]
[331366045,1720279850607,-500.21215348,0.00043835,120]
[331366046,1720279850621,-500.0,0.00043835,120]
[331366048,1720279850643,-502.63,0.00043835,120]
[331366051,1720279850654,-500.0,0.00043835,30]
[331366054,1720279850678,-500.0,0.00043835,120]
[331366056,1720279850689,-500.0,0.00043835,120]
[331366057,1720279850716,-387.67477119,0.00043835,120]
[331366059,1720279850727,-500.0,0.00043835,120]
[331366061,1720279850759,-500.0,0.00043835,120]
[331366062,1720279850770,-500.0,0.00043835,120]
[331366063,1720279850781,-1000.0,0.00043835,90]
[331366064,1720279850793,-500.0,0.00043835,120]
[331366065,1720279850804,-505.62943811,0.00043835,120]
[331366066,1720279850814,-500.0,0.00043835,120]
[331366067,1720279850825,-500.0,0.00043835,120]
[331366068,1720279850835,-1326.55,0.00043835,120]
[331366069,1720279850848,-1199.97,0.00043835,120]
[331366070,1720279850858,-463.47933302,0.00043835,120]
[331366071,1720279850869,-617.9,0.00043835,120]
[331366072,1720279850880,-151.0,0.00043835,14]
[331366073,1720279850898,-151.0,0.00043835,14]
[331366074,1720279850933,-151.0,0.00043835,14]
[331366075,1720279850951,-151.0,0.00043835,14]
[331366076,1720279850962,-151.0,0.00043835,14]
[331366077,1720279850995,-500.0,0.00043835,120]
[331366078,1720279851005,-516.25911458,0.00043835,2]
[331366079,1720279851017,-526.35,0.00043835,120]
[331366080,1720279851028,-500.0,0.00043835,120]
[331366081,1720279851042,-500.0,0.00043835,120]
[331366082,1720279851053,-500.0,0.00043835,120]
[331366083,1720279851064,-7454.06,0.00043835,120]
[331366084,1720279851118,-500.0,0.00043835,120]
[331366085,1720279851134,-500.0,0.00043835,120]
[331366086,1720279851180,-500.0,0.00043835,120]
[331366087,1720279851190,-511.44049353,0.00043835,120]
[331366088,1720279851252,-502.59942762,0.00043835,120]
[331366089,1720279851265,-500.0,0.00043835,120]
[331366090,1720279851276,-500.0,0.00043835,120]
[331366091,1720279851287,-514.89,0.00043835,120]
[331366092,1720279851300,-500.0,0.00043835,120]
[331366093,1720279851310,-500.0,0.00043835,120]
[331366094,1720279851332,-500.0,0.00043835,120]
[331366095,1720279851364,-500.0,0.00043835,120]
[331366096,1720279851377,-500.0,0.00043835,120]
[331366097,1720279851394,-500.0,0.00043835,120]
[331366098,1720279851406,-500.0,0.00043835,120]
[331366099,1720279851428,-500.0,0.00043835,120]
[331366100,1720279851453,-608.86,0.00043835,120]
[331366101,1720279851465,-595.95,0.00043835,120]
[331366102,1720279851477,-500.0,0.00043835,120]
[331366103,1720279851489,-500.0,0.00043835,120]
[331366104,1720279851507,-500.0,0.00043835,120]
[331366112,1720279851714,-500.0,0.00043835,120]
[331366114,1720279851729,-3193.42,0.00043835,120]
[331366116,1720279851740,-558.88,0.00043835,120]
[331366117,1720279851751,-500.0,0.00043835,120]
[331366119,1720279851764,-500.0,0.00043835,120]
[331366121,1720279851774,-500.0,0.00043835,120]
[331366122,1720279851792,-1117.79,0.00043835,120]
[331366123,1720279851802,-626.98,0.00043835,120]
[331366125,1720279851820,-500.0,0.00043835,120]
[331366128,1720279851866,-635.61,0.00043835,120]
[331366129,1720279851880,-500.0,0.00043835,120]
[331366131,1720279851894,-500.0,0.00043835,120]
[331366132,1720279851920,-500.0,0.00043835,120]
[331366133,1720279851941,-500.0,0.00043835,120]
[331366134,1720279851976,-683.69,0.00043835,120]
[331366135,1720279851987,-500.0,0.00043835,120]
[331366136,1720279851999,-500.0,0.00043835,120]
[331366137,1720279852011,-500.0,0.00043835,120]
[331366138,1720279852022,-499.50213478,0.00043835,120]
[331366139,1720279852046,-500.0,0.00043835,120]
[331366140,1720279852070,-500.0,0.00043835,120]
[331366141,1720279852094,-500.0,0.00043835,120]
[331366142,1720279852120,-500.0,0.00043835,120]
[331366143,1720279852130,-500.0,0.00043835,120]
[331366144,1720279852147,-500.0,0.00043835,120]
[331366145,1720279852157,-500.0,0.00043835,120]
[331366146,1720279852170,-594.11,0.00043835,120]
[331366147,1720279852181,-500.0,0.00043835,20]
[331366148,1720279852193,-508.59456744,0.00043835,120]
[331366149,1720279852207,-784.5,0.00043835,120]
[331366150,1720279852246,-501.98538086,0.00043835,120]
[331366151,1720279852284,-500.0,0.00043835,120]
[331366152,1720279852298,-500.0,0.00043835,120]
[331366153,1720279852310,-500.0,0.00043835,120]
[331366154,1720279852321,-502.92032579,0.00043835,120]
[331366155,1720279852331,-1103.25,0.00043835,120]
[331366156,1720279852342,-500.0,0.00043835,120]
[331366157,1720279852360,-319.83636117,0.00043835,120]
[331366158,1720279852370,-500.0,0.00043835,120]
[331366159,1720279852383,-521.19451282,0.00043835,120]
[331366160,1720279852394,-500.0,0.00043835,120]
[331366161,1720279852404,-500.0,0.00043835,120]
[331366162,1720279852414,-500.0,0.00043835,120]
[331366163,1720279852425,-512.11044345,0.00043835,120]
[331366164,1720279852439,-500.0,0.00043835,120]
[331366165,1720279852451,-444.167701,0.00043835,14]
[331366166,1720279852464,-444.167701,0.00043835,14]
[331366167,1720279852474,-500.0,0.00043835,120]
[331366168,1720279852483,-444.167701,0.00043835,14]
[331366169,1720279852528,-444.167701,0.00043835,14]
[331366170,1720279852538,-508.01078347,0.00043835,120]
[331366171,1720279852549,-203.16808644,0.00043835,120]
[331366172,1720279852560,-500.0,0.00043835,120]
[331366173,1720279852570,-500.0,0.00043835,120]
[331366174,1720279852588,-500.0,0.00043835,120]
[331366175,1720279852618,-514.37,0.00043835,120]
[331366176,1720279852627,-444.167701,0.00043835,14]
[331366177,1720279852638,-444.167701,0.00043835,14]
[331366178,1720279852670,-500.0,0.00043835,120]
[331366179,1720279852689,-500.0,0.00043835,120]
[331366180,1720279852700,-444.167701,0.00043835,14]
[331366181,1720279852730,-500.0,0.00043835,120]
[331366182,1720279852741,-444.167701,0.00043835,14]
[331366183,1720279852751,-504.05409318,0.00043835,120]
[331366184,1720279852761,-500.0,0.00043835,120]
[331366185,1720279852771,-500.0,0.00043835,120]
[331366186,1720279852786,-500.0,0.00043835,120]
[331366187,1720279852800,-500.0,0.00043835,120]
[331366188,1720279852810,-500.0,0.00043835,120]
[331366189,1720279852822,-151.0,0.00043835,14]
[331366190,1720279852844,-151.0,0.00043835,14]
[331366191,1720279852855,-500.0,0.00043835,120]
[331366192,1720279852866,-500.0,0.00043835,120]
[331366193,1720279852904,-500.0,0.00043835,120]
[331366194,1720279852914,-500.0,0.00043835,120]
[331366195,1720279852928,-500.0,0.00043835,120]
[331366196,1720279852961,-500.0,0.00043835,120]
[331366197,1720279852971,-508.76,0.00043835,120]
[331366198,1720279852982,-500.0,0.00043835,120]
[331366199,1720279852999,-500.0,0.00043835,120]
[331366200,1720279853016,-500.0,0.00043835,120]
[331366201,1720279853033,-500.0,0.00043835,120]
[331366202,1720279853055,-500.0,0.00043835,120]
[331366203,1720279853085,-500.0,0.00043835,120]
[331366204,1720279853102,-1953.68,0.00043835,120]
[331366205,1720279853115,-500.0,0.00043835,120]
[331366206,1720279853132,-505.14767051,0.00043835,120]
[331366207,1720279853142,-504.23984414,0.00043835,120]
[331366208,1720279853168,-500.0,0.00043835,120]
[331366209,1720279853195,-1230.62,0.00043835,120]
[331366210,1720279853207,-637.0,0.00043835,120]
[331366211,1720279853236,-500.0,0.00043835,120]
[331366212,1720279853247,-694.35,0.00043835,120]
[331366213,1720279853259,-571.17164899,0.00043835,120]
[331366214,1720279853272,-575.40044608,0.00043835,120]
[331366215,1720279853284,-500.0,0.00043835,120]
[331366216,1720279853299,-500.0,0.00043835,120]
[331366217,1720279853309,-571.45,0.00043835,120]
[331366218,1720279853320,-367.40365598,0.00043835,120]
[331366219,1720279853339,-903.25,0.00043835,120]
[331366220,1720279853350,-500.0,0.00043835,120]
[331366221,1720279853368,-500.0,0.00043835,120]
[331366222,1720279853380,-500.0,0.00043835,120]
[331366223,1720279853390,-500.0,0.00043835,120]
[331366224,1720279853406,-493.11070217,0.00043835,120]
[331366225,1720279853423,-151.0,0.00043835,14]
[331366226,1720279853433,-550.26058132,0.00043835,120]
[331366227,1720279853453,-500.0,0.00043835,120]
[331366228,1720279853465,-647.528643,0.00043835,14]
[331366229,1720279853482,-647.528643,0.00043835,14]
[331366230,1720279853495,-582.76,0.00043835,120]
[331366231,1720279853507,-647.528643,0.00043835,14]
[331366232,1720279853517,-504.04810423,0.00043835,120]
[331366233,1720279853527,-647.528643,0.00043835,14]
[331366234,1720279853538,-151.0,0.00043835,14]
[331366235,1720279853549,-203.164778,0.00043835,14]
[331366236,1720279853561,-500.0,0.00043835,120]
[331366237,1720279853579,-500.0,0.00043835,120]
[331366238,1720279853597,-647.528643,0.00043835,14]
[331366239,1720279853610,-647.528643,0.00043835,14]
[331366240,1720279853621,-647.528643,0.00043835,14]
[331366241,1720279853633,-647.528643,0.00043835,14]
[331366242,1720279853643,-500.0,0.00043835,120]
[331366243,1720279853700,-636.7793891,0.00043835,120]
[331366244,1720279853712,-500.0,0.00043835,120]
[331366245,1720279853723,-500.0,0.00043835,120]
[331366246,1720279853737,-500.0,0.00043835,120]
[331366247,1720279853794,-500.0,0.00043835,120]
[331366248,1720279853818,-500.0,0.00043835,120]
[331366249,1720279853840,-504.89,0.00043835,120]
[331366250,1720279853862,-500.0,0.00043835,120]
[331366251,1720279853913,-500.0,0.00043835,120]
[331366252,1720279853925,-500.0,0.00043835,120]
[331366253,1720279853940,-500.0,0.00043835,120]
[331366254,1720279853951,-1101.99,0.00043835,120]
[331366255,1720279853966,-500.0,0.00043835,120]
[331366256,1720279853977,-500.0,0.00043835,120]
[331366257,1720279854010,-329.48784056,0.00043835,120]
[331366258,1720279854068,-503.5305986,0.00043835,120]
[331366259,1720279854085,-814.61,0.00043835,120]
[331366260,1720279854105,-15352.34618577,0.00043835,120]
[331366261,1720279854286,-528.16653539,0.00043835,120]
[331366262,1720279856720,-15069.79727884,0.00043835,120]
[331366263,1720279856739,-500.0,0.00043835,120]
[331366264,1720279856756,-500.0,0.00043835,120]
[331366265,1720279856779,-1069.77,0.00043835,120]
[331366266,1720279856792,-500.0,0.00043835,120]
[331366267,1720279856825,-501.72111881,0.00043835,120]
[331366268,1720279856897,-1346.25,0.00043835,120]
[331366269,1720279856920,-4111.6,0.00043835,120]
[331366270,1720279856956,-500.0,0.00043835,120]
[331366271,1720279856975,-509.87386553,0.00043835,120]
[331366272,1720279857001,-500.0,0.00043835,120]
[331366273,1720279857016,-500.0,0.00043835,120]
[331366274,1720279857026,-500.0,0.00043835,120]
[331366275,1720279857039,-191.565386,0.00043835,14]
[331366276,1720279857050,-500.0,0.00043835,120]
[331366277,1720279857061,-11173.7,0.00043835,120]
[331366278,1720279857073,-545.86,0.00043835,120]
[331366279,1720279857085,-500.5055612,0.00043835,120]
[331366280,1720279857100,-756.90595824,0.00043835,120]
[331366281,1720279857118,-687.20404176,0.00043835,120]
[331366282,1720279857129,-1518.84,0.00043835,120]
[331366283,1720279857145,-15596.23,0.00043835,120]
[331366284,1720279857158,-500.0,0.00043835,120]
[331366285,1720279857168,-504.49192287,0.00043835,120]
[331366286,1720279857179,-500.0,0.00043835,120]
[331366287,1720279857193,-558.7,0.00043835,120]
[331366288,1720279857207,-500.0,0.00043835,120]
[331366289,1720279857219,-429.00413,0.00043835,14]
[331366290,1720279857263,-500.0,0.00043835,120]
[331366291,1720279857277,-429.00413,0.00043835,14]
[331366292,1720279857287,-151.0,0.00043835,14]
[331366293,1720279857301,-151.0,0.00043835,14]
[331366294,1720279857353,-500.0,0.00043835,120]
[331366295,1720279857364,-1510.94,0.00043835,120]
[331366296,1720279857375,-500.0,0.00043835,120]
[331366297,1720279857387,-3494.38,0.00043835,21]
[331366298,1720279857397,-1206.66,0.00043835,120]
[331366299,1720279857407,-500.0,0.00043835,120]
[331366300,1720279857418,-662.16235192,0.00043835,90]
[331366301,1720279857428,-191.565386,0.00043835,14]
[331366302,1720279857453,-191.565386,0.00043835,14]
[331366303,1720279857466,-500.0,0.00043835,120]
[331366304,1720279857479,-1985.4,0.00043835,120]
[331366305,1720279857489,-500.0,0.00043835,120]
[331366306,1720279857500,-500.0,0.00043835,120]
[331366307,1720279857512,-212.10893839,0.00043835,7]
[331366308,1720279857526,-510.97,0.00043835,120]
[331366309,1720279857539,-191.565386,0.00043835,14]
[331366310,1720279857570,-500.0,0.00043835,120]
[331366311,1720279857580,-500.0,0.00043835,120]
[331366312,1720279857597,-554.86,0.00043835,120]
[331366313,1720279857607,-1573.4,0.00043835,120]
[331366314,1720279857618,-1708.18,0.00043835,120]
[331366315,1720279857645,-500.0,0.00043835,120]
[331366316,1720279857657,-429.00413,0.00043835,14]
[331366317,1720279857669,-500.0,0.00043835,120]
[331366318,1720279857682,-747.32,0.00043835,120]
[331366319,1720279857708,-1141.72,0.00043835,120]
[331366320,1720279857728,-66.46030983,0.00043835,120]
[331366321,1720279857744,-802.04969017,0.00043835,120]
[331366322,1720279857758,-151.0,0.00043835,14]
[331366323,1720279857768,-151.0,0.00043835,14]
[331366324,1720279857809,-429.00413,0.00043835,14]
[331366325,1720279857822,-1556.21,0.00043835,120]
[331366326,1720279858003,-429.00413,0.00043835,14]
[331366327,1720279858035,-151.0,0.00043835,14]
[331366328,1720279858052,-151.0,0.00043835,14]
[331366329,1720279858069,-51.85594201,0.00043835,14]
[331366330,1720279858123,-377.14818799,0.00043835,14]
[331366331,1720279858136,-191.565386,0.00043835,14]
[331366332,1720279858146,-429.00413,0.00043835,14]
[331366333,1720279858198,-191.565386,0.00043835,14]
[331366334,1720279858215,-429.00413,0.00043835,14]
[331366335,1720279858238,-191.565386,0.00043835,14]
[331366336,1720279858248,-191.565386,0.00043835,14]
[331366337,1720279858264,-500.0,0.00043835,120]
[331366338,1720279858278,-151.0,0.00043835,14]
[331366339,1720279858293,-151.0,0.00043835,14]
[331366340,1720279858302,-151.0,0.00043835,14]
[331366341,1720279858317,-500.0,0.00043835,120]
[331366342,1720279858345,-500.0,0.00043835,120]
[331366343,1720279858358,-151.0,0.00043835,14]
[331366344,1720279858367,-151.0,0.00043835,14]
[331366345,1720279858440,-500.0,0.00043835,120]
[331366346,1720279858465,-500.0,0.00043835,120]
[331366347,1720279858474,-1037.29,0.00043835,120]
[331366348,1720279858500,-500.0,0.00043835,120]
[331366349,1720279858529,-151.0,0.00043835,14]
[331366350,1720279858586,-324.41501748,0.00043835,120]
[331366351,1720279858598,-151.0,0.00043835,14]
[331366352,1720279858608,-151.0,0.00043835,14]
[331366353,1720279858620,-500.0,0.00043835,120]
[331366354,1720279858643,-500.0,0.00043835,120]
[331366355,1720279858655,-500.0,0.00043835,120]
[331366356,1720279858664,-500.0,0.00043835,120]
[331366357,1720279858673,-500.0,0.00043835,120]
[331366358,1720279858684,-500.0,0.00043835,120]
[331366359,1720279858694,-500.0,0.00043835,120]
[331366360,1720279858711,-500.0,0.00043835,120]
[331366361,1720279858744,-500.0,0.00043835,120]
[331366362,1720279858775,-121.22453333,0.00043835,120]
[331366363,1720279858788,-108.02244139,0.00043835,120]
[331366364,1720279858799,-500.0,0.00043835,120]
[331366365,1720279858848,-5584.32,0.00043835,120]
[331366366,1720279858896,-826.30759359,0.00043835,120]
[331366367,1720279858928,-355.18240641,0.00043835,120]
[331366368,1720279858949,-500.0,0.00043835,120]
[331366369,1720279858959,-500.0,0.00043835,120]
[331366370,1720279858984,-559.34,0.00043835,120]
[331366371,1720279859011,-500.0,0.00043835,120]
[331366372,1720279859036,-500.0,0.00043835,2]
[331366373,1720279859045,-712.34,0.00043835,120]
[331366374,1720279859057,-500.0,0.00043835,120]
[331366375,1720279859084,-500.0,0.00043835,120]
[331366376,1720279859096,-500.0,0.00043835,120]
[331366377,1720279859106,-588.74,0.00043835,120]
[331366378,1720279859114,-500.0,0.00043835,120]
[331366379,1720279859135,-2029.47,0.00043835,120]
[331366380,1720279859145,-500.0,0.00043835,120]
[331366381,1720279859164,-125.61245411,0.00043835,120]
[331366382,1720279859177,-436.69672293,0.00043835,120]
[331366383,1720279859787,-1373.646,0.00032611,30]
[331366384,1720279859799,-167.03082296,0.00043835,120]
[331366385,1720279859810,-500.0,0.00043835,120]
[331366386,1720279859825,-500.21609958,0.00043835,120]
[331366387,1720279859837,-200.0,0.00043835,7]
[331366388,1720279859852,-502.65762737,0.00043835,120]
[331366389,1720279859898,-500.0,0.00043835,120]
[331366390,1720279859908,-500.0,0.00043835,120]
[331366391,1720279859928,-200.82780944,0.00043835,120]
[331366392,1720279859942,-296.90508073,0.00043835,120]